bitfinex/quotes_ETHUSD_20240927
["timestamp","ask_amount","ask_price","bid_price","bid_amount"]
[1727410811992,3.07622855,2652.8,2652.6,0.5]
[1727410812205,0.03526649,2652.7,2652.6,0.5]
[1727410812382,3.07622855,2652.8,2652.6,0.5]
[1727410812581,0.03526649,2652.7,2652.6,0.5]
[1727410812799,0.07622855,2652.8,2652.6,0.5]
[1727410813004,0.03526649,2652.7,2652.6,0.5]
[1727410813189,0.07622855,2653.0,2652.6,0.5]
[1727410813390,0.07622855,2653.0,2652.7,0.8133]
[1727410813936,3.84554855,2653.0,2652.7,0.8133]
[1727410814344,3.76949,2652.9,2652.6,0.5]
[1727410814634,3.76974,2652.7,2652.6,0.5]
[1727410814834,3.84596855,2652.7,2652.6,0.5]
[1727410815039,8.32113936,2652.7,2652.6,0.5]
[1727410815334,9.45398475,2652.7,2652.6,0.5]
[1727410815506,12.45398475,2652.7,2652.6,0.5]
[1727410816638,12.48845486,2652.7,2652.6,0.5]
[1727410832264,12.53553585,2652.7,2652.6,0.5]
[1727410838255,12.92811459,2652.7,2652.6,0.1875]
[1727410846962,16.90511459,2652.7,2652.6,0.1875]
[1727410850397,14.93162435,2652.7,2652.6,0.1875]
[1727410851190,9.26094378,2652.7,2652.6,0.1875]
[1727410851393,11.34914032,2652.7,2652.6,0.1875]
[1727410851619,3.77116,2651.7,2651.6,0.8118]
[1727410851822,5.46484057,2651.7,2651.6,0.8118]
[1727410852110,5.62144881,2651.7,2651.6,0.8118]
[1727410852309,6.92776824,2651.7,2651.6,0.8118]
[1727410853086,3.7716,2651.4,2650.9,0.8118]
[1727410853319,3.77198,2651.2,2650.9,0.8118]
[1727410853614,0.07622855,2651.1,2650.9,0.8118]
[1727410854312,3.77216,2651.0,2650.9,0.8118]
[1727410855281,7.52248288,2651.0,2650.9,0.8118]
[1727410855480,3.7723,2650.9,2650.8,0.0386463]
[1727410855715,4.98562969,2650.9,2650.8,0.0386463]
[1727410855890,5.06564802,2650.9,2650.8,0.0386463]
[1727410856092,8.06564802,2650.9,2650.8,0.0386463]
[1727410856297,7.98941947,2650.9,2650.8,0.0386463]
[1727410858214,8.77571947,2650.9,2650.8,0.0386463]
[1727410858518,7.98941947,2650.9,2650.8,0.0386463]
[1727410859986,7.98941947,2650.9,2650.8,0.8536463]
[1727410860522,6.85231833,2650.9,2650.8,0.8536463]
[1727410860716,6.92854688,2650.9,2650.8,0.8536463]
[1727410863220,7.71484688,2650.9,2650.8,0.0386463]
[1727410863426,6.85231833,2650.9,2650.8,0.0386463]
[1727410863610,8.43663381,2650.9,2650.8,0.0386463]
[1727410863926,8.36040526,2650.9,2650.8,0.0386463]
[1727410865429,6.85231833,2650.9,2650.8,0.0386463]
[1727410865596,6.92854688,2650.9,2650.8,0.0386463]
[1727410867296,3.15624688,2650.9,2650.8,0.8536463]
[1727410867640,0.08001833,2650.9,2650.8,4.6260863]
[1727410867795,3.77188,2651.2,2650.9,0.815]
[1727410867997,0.15597714,2651.1,2650.9,0.815]
[1727410868200,0.07974859,2651.1,2650.9,0.815]
[1727410868502,0.07622855,2651.3,2650.9,0.815]
[1727410868695,0.07980428,2651.0,2650.9,0.815]
[1727410868926,3.07622855,2651.3,2650.9,0.815]
[1727410869196,6.84802855,2651.3,2650.9,0.815]
[1727410869417,3.77216,2651.1,2650.9,0.815]
[1727410869595,0.07622855,2651.0,2650.9,0.815]
[1727410869936,3.85228206,2651.0,2650.9,0.815]
[1727410870275,3.92851061,2651.0,2650.9,0.815]
[1727410876414,6.7723,2650.9,2650.8,0.0386463]
[1727410876620,11.2886846,2650.9,2650.8,0.0386463]
[1727410876820,11.2921902,2650.9,2650.8,0.0386463]
[1727410877951,12.0683902,2650.9,2650.8,0.0386463]
[1727410878150,12.46119076,2650.9,2650.8,0.0386463]
[1727410878858,8.79109977,2650.9,2650.8,0.0386463]
[1727410879562,10.79109977,2650.9,2650.8,0.0386463]
[1727410879739,8.79109977,2650.9,2650.8,0.0386463]
[1727410882469,8.79109977,2650.9,2649.5,0.809]
[1727410882470,7.54964,2650.1,2649.5,0.809]
[1727410882622,7.62586855,2650.1,2649.5,0.809]
[1727410882817,11.36412546,2650.1,2649.5,0.809]
[1727410883122,11.28789691,2650.1,2649.5,0.809]
[1727410883848,10.51169691,2650.1,2649.5,0.809]
[1727410884024,12.0178156,2650.1,2649.5,0.809]
[1727410884716,12.0178156,2650.1,2649.2,0.0386463]
[1727410884920,12.7940156,2650.1,2649.2,0.0386463]
[1727410886356,12.7940156,2650.1,2649.3,0.809]
[1727410888554,13.18673105,2650.1,2649.3,0.809]
[1727410891368,13.18673105,2650.1,2649.9,0.7615]
[1727410891369,5.74044006,2650.1,2649.9,0.7615]
[1727410891668,3.91783447,2650.1,2649.9,0.7615]
[1727410895378,3.84160592,2650.1,2649.9,0.7615]
[1727410895585,0.06816592,2650.1,2649.9,0.7615]
[1727410895967,6.84957855,2650.2,2649.9,0.7615]
[1727410896284,0.06376657,2650.1,2649.9,0.7615]
[1727410900164,3.83720657,2650.1,2649.9,0.7615]
[1727410901630,0.06376657,2650.1,2649.9,0.7615]
[1727410901895,3.77303,2650.4,2650.0,1.25754593]
[1727410902057,0.061623,2650.1,2650.0,1.25754593]
[1727410902256,3.77303,2650.4,2650.0,1.25754593]
[1727410902482,0.06161742,2650.1,2650.0,1.25754593]
[1727410902653,3.77303,2650.4,2650.0,1.25754593]
[1727410902853,3.77303,2650.4,2650.1,0.7615]
[1727410904961,0.07622855,2650.5,2650.1,0.7615]
[1727410905160,8.76283418,2650.8,2650.3,0.7615]
[1727410905161,0.07622855,2650.7,2650.3,0.7615]
[1727410905770,6.77249,2650.8,2650.3,0.7615]
[1727410905771,0.07622855,2650.8,2650.3,0.7615]
[1727410905974,0.07622855,2650.9,2650.4,0.7615]
[1727410906171,0.07622855,2651.1,2650.5,0.7615]
[1727410906386,0.06187343,2650.8,2650.7,0.7615]
[1727410906598,3.84825855,2651.1,2650.7,0.7615]
[1727410906802,0.06187343,2650.8,2650.7,0.7615]
[1727410906963,3.84825855,2651.1,2650.7,0.7615]
[1727410907297,0.07622855,2651.1,2650.7,0.7615]
[1727410907506,0.06190095,2651.0,2650.7,0.7615]
[1727410907662,0.47079359,2651.2,2650.8,0.7615]
[1727410907902,0.06188719,2650.9,2650.8,0.7615]
[1727410908068,0.39456504,2651.2,2650.8,0.7615]
[1727410908290,0.06188719,2650.9,2650.8,0.7615]
[1727410908497,3.84798855,2651.3,2650.8,0.7615]
[1727410908862,3.77176,2651.3,2650.8,0.7615]
[1727410909894,0.07622855,2651.5,2650.9,0.7615]
[1727410909895,0.06192846,2651.2,2650.9,0.7615]
[1727410910203,3.0,2651.4,2650.9,0.7615]
[1727410910449,0.06191471,2651.1,2650.9,0.7615]
[1727410910566,3.0,2651.4,2650.9,0.7615]
[1727410910762,3.0,2651.4,2650.9,3.77228]
[1727410910980,0.06194222,2651.3,2651.0,0.7615]
[1727410911399,3.84776855,2651.5,2651.0,0.7615]
[1727410912875,3.07622855,2651.5,2651.0,0.7615]
[1727410913360,3.0,2651.5,2651.0,0.7615]
[1727410913573,0.39452507,2651.7,2651.3,4.53322]
[1727410913973,0.07622855,2651.8,2651.4,0.7615]
[1727410914399,3.07622855,2651.9,2651.4,0.7615]
[1727410914586,6.84713855,2651.9,2651.4,0.7615]
[1727410915104,0.07622855,2651.9,2651.4,4.53307]
[1727410915406,0.07622855,2651.9,2651.4,5.7305621]
[1727410917095,0.07622855,2651.9,2651.5,0.7615]
[1727410917536,0.06259118,2651.8,2651.5,0.7615]
[1727410919101,0.06259118,2651.8,2651.5,4.53289]
[1727410919308,0.07622855,2652.1,2651.7,0.8085]
[1727410919509,3.84645855,2652.4,2651.9,0.8085]
[1727410920535,3.77032,2652.3,2651.9,0.8085]
[1727410920836,3.84645855,2652.4,2651.9,0.8085]
[1727410921337,3.77054,2652.2,2651.9,0.8085]
[1727410921494,3.77054,2652.2,2651.6,3.77124]
[1727410921495,0.07622855,2652.1,2651.6,3.77124]
[1727410921702,0.07622855,2652.1,2651.7,0.8085]
[1727410921900,3.84685855,2652.1,2651.7,0.8085]
[1727410922312,0.07622855,2652.1,2651.7,0.8085]
[1727410922807,3.84685855,2652.1,2651.7,0.8085]
[1727410923028,0.07622855,2652.1,2651.7,0.8085]
[1727410923728,3.84687855,2652.1,2651.7,0.8085]
[1727410924134,3.77073,2652.0,2651.7,0.8085]
[1727410924318,0.07622855,2652.1,2651.7,0.8085]
[1727410924511,3.84693855,2652.1,2651.5,3.77141]
[1727410926353,3.84693855,2652.1,2651.5,4.606572]
[1727410927812,0.07622855,2652.1,2651.7,3.77115]
[1727410928013,3.84682855,2652.1,2651.6,0.8085]
[1727410932431,3.0,2652.2,2651.7,3.77112]
[1727410932630,3.07622855,2652.2,2651.7,4.229044]
[1727410933515,0.07622855,2652.2,2651.7,4.229044]
[1727410933731,3.84657855,2652.3,2651.7,4.229044]
[1727410935059,3.77056,2652.2,2651.7,0.457984]
[1727410935218,3.84657855,2652.3,2651.6,0.8085]
[1727410935416,0.7836,2652.0,2651.6,0.8085]
[1727410937140,0.85982855,2652.0,2651.4,0.7775]
[1727410937351,0.85982855,2652.0,2651.4,4.54906]
[1727410937559,4.63064855,2652.0,2651.4,4.54906]
[1727410937733,0.07622855,2652.0,2651.5,3.77144]
[1727410938528,3.84698855,2652.0,2651.5,3.77144]
[1727410939054,3.84698855,2652.0,2651.4,0.7775]
[1727410939433,0.07622855,2652.0,2651.4,4.549]
[1727410939655,0.07622855,2652.0,2651.4,1.609562]
[1727410939859,0.07622855,2652.1,2651.6,0.7775]
[1727410940030,0.07622855,2652.1,2651.7,3.77114]
[1727410940923,0.07622855,2652.1,2651.6,0.7775]
[1727410941124,0.07622855,2652.1,2651.6,1.6927272]
[1727410941643,3.84689855,2652.1,2651.6,1.6927272]
[1727410941837,3.84689855,2652.1,2651.6,0.7775]
[1727410942451,0.07622855,2652.1,2651.6,0.7775]
[1727410943528,3.77078,2652.0,2651.6,0.7775]
[1727410944061,3.84681855,2652.1,2651.6,0.7775]
[1727410944364,0.07622855,2652.1,2651.6,0.7775]
[1727410944537,0.07622855,2652.2,2651.7,3.77115]
[1727410944746,3.07622855,2652.2,2651.7,3.77115]
[1727410945873,3.84667855,2652.2,2651.7,3.77115]
[1727410947069,3.84667855,2652.2,2651.6,0.7775]
[1727410947300,3.77065,2652.1,2651.6,0.7775]
[1727410948900,4.57655,2652.0,2651.5,3.77135]
[1727410950429,4.57655,2652.0,2651.4,0.798]
[1727410950719,4.57655,2652.0,2651.4,4.56957]
[1727410950924,4.57655,2652.0,2651.4,5.40369]
[1727410952498,4.57655,2652.0,2651.4,9.17519]
[1727410952830,4.57655,2652.0,2651.4,8.341]
[1727410953123,4.57655,2652.0,2651.4,4.5695]
[1727410953702,4.57655,2652.0,2651.4,8.341]
[1727410954200,4.57655,2652.0,2651.4,4.5695]
[1727410954620,0.07622855,2651.9,2651.4,4.5695]
[1727410956324,0.8058,2652.0,2651.5,3.77132]
[1727410956627,0.8058,2652.0,2651.4,6.26246492]
[1727410956990,4.57657,2652.0,2651.4,6.26246492]
[1727410958634,3.77047,2652.2,2651.6,3.77129]
[1727410958797,3.77047,2652.2,2651.7,0.798]
[1727410959431,7.54102,2652.2,2651.7,0.798]
[1727410959591,3.84669855,2652.2,2651.7,0.798]
[1727410960027,3.77061,2652.1,2651.7,0.798]
[1727410960334,4.53571986,2652.2,2651.7,0.798]
[1727410960581,3.77047,2652.2,2651.7,0.798]
[1727410960831,3.77047,2652.2,2651.7,4.56915]
[1727410961034,3.77047,2652.2,2651.7,0.798]
[1727410961691,3.77063,2652.1,2651.7,0.798]
[1727410961893,3.77047,2652.2,2651.7,0.798]
[1727410963527,3.7706,2652.1,2651.7,0.798]
[1727410963736,3.77047,2652.2,2651.7,0.798]
[1727410963899,7.54102,2652.2,2651.7,0.798]
[1727410964437,3.8058,2652.3,2651.7,0.798]
[1727410964597,3.77062,2652.1,2651.7,0.798]
[1727410965791,4.57612,2652.3,2651.7,0.798]
[1727410966731,3.77062,2652.1,2651.7,0.798]
[1727410967322,3.77092,2651.9,2651.5,0.798]
[1727410967899,3.77076,2652.0,2651.5,0.798]
[1727410969638,3.77062,2652.1,2651.5,0.798]
[1727410969834,3.77062,2652.1,2651.5,4.56939]
[1727410970148,7.54134,2652.1,2651.5,4.56939]
[1727410970352,7.54134,2652.1,2651.5,0.798]
[1727410970353,4.28240834,2652.1,2651.5,0.798]
[1727410970551,3.77074,2652.0,2651.5,0.798]
[1727410971556,3.77074,2652.0,2651.5,4.56943]
[1727410971865,3.77053,2652.2,2651.6,3.77125]
[1727410972357,3.77063,2652.1,2651.6,3.77125]
[1727410972551,3.77063,2652.1,2651.5,1.57861922]
[1727410972849,3.77063,2652.1,2651.5,5.35000922]
[1727410973751,3.77063,2652.1,2651.6,3.77129]
[1727410975887,0.07622855,2652.2,2651.6,3.77129]
[1727410975888,3.77045,2652.2,2651.6,3.77117]
[1727410976072,3.77045,2652.2,2651.7,0.798]
[1727410976909,0.07622855,2652.2,2651.7,0.798]
[1727410977088,3.77063,2652.1,2651.7,0.798]
[1727410978284,8.81188486,2652.3,2651.7,0.798]
[1727410978488,3.77047,2652.2,2651.7,0.798]
[1727410978985,0.05932012,2652.1,2651.7,0.798]
[1727410979407,3.0,2652.4,2651.8,5.46397492]
[1727410979592,3.0,2652.4,2652.0,0.8096]
[1727410980096,7.61601855,2652.6,2652.0,4.58032]
[1727410980393,3.84612855,2652.6,2652.0,4.58032]
[1727410980697,3.84603855,2652.7,2652.2,1.69296492]
[1727410980993,3.84603855,2652.7,2652.0,5.66280241]
[1727410980994,3.84603855,2652.7,2652.0,7.35576733]
[1727410981200,3.76991,2652.6,2652.0,8.13638655]
[1727410981497,3.76991,2652.6,2652.0,7.35576733]
[1727410981815,3.84603855,2652.7,2652.0,7.35576733]
[1727410982009,0.7699,2653.1,2652.6,1.69296492]
[1727410982171,0.11487485,2653.2,2652.8,1.69296492]
[1727410982498,3.88390485,2653.2,2652.8,1.69296492]
[1727410982695,0.90221784,2653.1,2652.8,1.69296492]
[1727410983227,4.67140784,2653.1,2652.6,1.69296492]
[1727410984031,4.67140784,2653.1,2652.7,0.8096]
[1727410987599,0.05994435,2653.1,2652.8,1.69296492]
[1727410988128,0.05994435,2653.1,2652.9,0.8096]
[1727410988523,0.05994435,2653.1,2653.0,1.69296492]
[1727410989353,0.05994435,2653.1,2653.0,6.27187492]
[1727410989501,0.05994435,2653.1,2653.0,7.27602141]
[1727410990195,0.0386463,2653.2,2653.0,7.27602141]
[1727410990196,0.0386463,2653.2,2653.1,4.57877]
[1727410990434,0.0386463,2653.2,2653.1,4.6541358]
[1727410990636,0.0386463,2653.2,2653.1,4.57877]
[1727410992441,0.0386463,2653.2,2653.1,8.24148669]
[1727410992658,0.0386463,2653.2,2653.1,9.54298101]
[1727411014370,0.0386463,2653.2,2653.1,7.57071259]
[1727411020288,0.0386463,2653.2,2653.1,7.64607653]
[1727411020487,0.0386463,2653.2,2653.1,7.57071259]
[1727411025821,0.0386463,2653.2,2653.1,8.34809883]
[1727411027691,0.0386463,2653.2,2653.1,7.57071259]
[1727411028232,0.0386463,2653.2,2653.1,8.35245913]
[1727411028402,0.0386463,2653.2,2653.1,4.55091654]
[1727411028599,0.7946,2653.1,2652.9,0.03]
[1727411029292,0.05972872,2653.0,2652.9,0.03]
[1727411030931,0.05972872,2653.0,2652.9,3.79945]
[1727411031427,0.0386463,2653.2,2653.1,3.76917]
[1727411032218,0.0386463,2653.2,2653.1,3.79917]
[1727411032419,0.0386463,2653.2,2653.1,8.79917]
[1727411032617,0.8332463,2653.2,2653.1,8.79917]
[1727411033126,0.0386463,2653.2,2653.1,8.79917]
[1727411034597,0.0386463,2653.2,2653.1,10.37964148]
[1727411034814,0.0386463,2653.2,2653.1,11.16138802]
[1727411039522,0.0386463,2653.2,2653.1,16.1218247]
[1727411039734,0.0386463,2653.2,2653.1,15.73071368]
[1727411040043,0.0386463,2653.2,2653.1,17.42130738]
[1727411040255,0.0386463,2653.2,2653.1,15.73085911]
[1727411040433,0.0386463,2653.2,2653.1,5.81415274]
[1727411040633,0.0386463,2653.2,2653.1,5.03]
[1727411040634,0.8490463,2653.2,2653.1,5.03]
[1727411041408,3.8076763,2653.2,2653.1,5.03]
[1727411041625,4.6180763,2653.2,2653.1,5.03]
[1727411041844,5.62580376,2653.2,2653.1,5.03]
[1727411042411,5.62580376,2653.2,2653.1,0.03]
[1727411042412,1.81812746,2653.2,2653.1,0.03]
[1727411042609,5.58715746,2653.2,2653.1,0.03]
[1727411043377,1.81812746,2653.2,2653.1,0.03]
[1727411044066,0.8104,2653.2,2653.1,0.03]
[1727411045105,0.8104,2653.6,2653.1,0.10538194]
[1727411045351,0.8104,2653.6,2653.3,3.76877]
[1727411048263,0.8104,2653.6,2653.4,3.76871]
[1727411048434,0.8104,2653.6,2653.4,4.89191163]
[1727411048631,0.8104,2653.9,2653.4,4.89191163]
[1727411048831,0.8104,2653.9,2653.5,3.76859]
[1727411049726,0.8104,2653.9,2653.6,3.76834]
[1727411049943,0.8104,2653.9,2653.7,3.76832]
[1727411051022,0.8104,2653.9,2653.7,3.7682]
[1727411051256,0.8104,2653.9,2653.8,3.76818]
[1727411051461,0.8104,2653.9,2653.7,3.7682]
[1727411051831,0.8104,2653.9,2653.8,3.76818]
[1727411052859,0.8104,2653.9,2653.8,3.79818]
[1727411055139,0.8104,2653.9,2653.8,0.03]
[1727411056133,0.8104,2653.9,2653.8,1.15312463]
[1727411056354,0.43276949,2654.0,2653.8,4.92128463]
[1727411056759,0.43276949,2654.0,2653.8,1.15312463]
[1727411057069,0.43276949,2654.0,2653.8,0.03]
[1727411057843,0.43276949,2654.0,2653.8,3.69453628]
[1727411058067,0.0386463,2654.0,2653.8,3.69453628]
[1727411058566,0.0386463,2654.0,2653.9,3.76803]
[1727411059127,0.0386463,2654.0,2653.8,7.46270628]
[1727411059474,0.0386463,2654.0,2653.8,4.99706363]
[1727411060470,0.0386463,2654.0,2653.9,3.76803]
[1727411061841,0.0386463,2654.0,2653.9,3.79803]
[1727411063677,0.0386463,2654.0,2653.9,3.8733822]
[1727411063885,0.0386463,2654.0,2653.9,3.79803]
[1727411064033,0.0386463,2654.0,2653.9,5.11679399]
[1727411066145,0.0386463,2654.0,2653.9,3.79803]
[1727411067558,0.0386463,2654.0,2653.9,3.87338223]
[1727411067877,0.0386463,2654.0,2653.9,3.8733816]
[1727411068252,0.0386463,2654.0,2653.9,4.6359816]
[1727411068580,0.0386463,2654.0,2653.9,4.63597296]
[1727411068785,0.0386463,2654.0,2653.9,6.62560145]
[1727411069076,0.0386463,2654.0,2653.9,6.62203961]
[1727411069277,0.0386463,2654.0,2653.9,6.622057]
[1727411069652,0.0386463,2654.0,2653.9,5.84144871]
[1727411069864,0.0386463,2654.0,2653.9,9.622057]
[1727411070062,0.0386463,2654.0,2653.9,9.54671404]
[1727411070389,0.0386463,2654.0,2653.9,13.20682428]
[1727411070899,0.0386463,2654.0,2653.9,12.42621599]
[1727411090473,0.0386463,2654.0,2653.9,11.23588641]
[1727411091859,0.0386463,2654.0,2653.9,10.45527812]
[1727411092070,0.0386463,2654.0,2653.9,11.23450174]
[1727411092227,0.0386463,2654.0,2653.9,11.2344914]
[1727411092422,0.0386463,2654.0,2653.9,11.63150723]
[1727411092728,0.0386463,2654.0,2653.9,10.45527812]
[1727411092930,0.0386463,2654.0,2653.9,11.23461884]
[1727411093123,0.0386463,2654.0,2653.9,10.45527812]
[1727411093959,0.0386463,2654.0,2653.9,9.94233486]
[1727411094262,0.0386463,2654.0,2653.9,10.47222495]
[1727411096223,0.0386463,2654.0,2653.9,11.23482495]
[1727411096388,0.0386463,2654.0,2653.9,11.63150723]
[1727411098132,0.0386463,2654.0,2653.9,10.45527812]
[1727411098992,0.0386463,2654.0,2653.9,11.62512188]
[1727411099941,0.0386463,2654.0,2653.9,11.62531528]
[1727411100101,0.0386463,2654.0,2653.9,11.62531707]
[1727411100432,0.0386463,2654.0,2653.9,9.93611587]
[1727411100600,0.0386463,2654.0,2653.9,3.79803]
[1727411100800,0.0386463,2654.0,2653.9,5.48720237]
[1727411101725,0.0386463,2654.0,2653.9,5.5625535]
[1727411102237,0.0386463,2654.0,2653.9,5.48720237]
[1727411102610,0.0386463,2654.0,2653.9,5.56254903]
[1727411103145,0.0386463,2654.0,2653.9,5.48720237]
[1727411103506,0.0386463,2654.0,2653.9,5.56254928]
[1727411103911,0.0386463,2654.0,2653.9,5.48720237]
[1727411104502,0.0386463,2654.0,2653.9,5.5625493]
[1727411105035,0.0386463,2654.0,2653.9,6.34297164]
[1727411105339,0.0386463,2654.0,2653.9,5.56254923]
[1727411105546,0.0386463,2654.0,2653.9,6.34297085]
[1727411106124,0.0386463,2654.0,2653.9,5.56254923]
[1727411106326,0.0386463,2654.0,2653.9,5.48720237]
[1727411106537,0.0386463,2654.0,2653.9,6.26810801]
[1727411107807,0.8235463,2654.0,2653.9,5.48720237]
[1727411108003,0.8235463,2654.0,2653.9,0.81090564]
[1727411108319,0.8235463,2654.0,2653.9,0.03]
[1727411108728,1.33939471,2654.0,2653.9,0.03]
[1727411108909,0.88006058,2654.0,2653.9,0.03]
[1727411111705,4.64795058,2654.0,2653.9,0.03]
[1727411111905,4.72417913,2654.0,2653.9,0.03]
[1727411112351,7.72417913,2654.0,2653.9,0.03]
[1727411112533,7.64795058,2654.0,2653.9,0.03]
[1727411112708,8.95866538,2654.0,2653.9,0.03]
[1727411112905,3.0,2653.9,2653.6,0.00217294]
[1727411113149,0.6782,2653.0,2652.3,3.77021]
[1727411113650,3.76978,2652.7,2652.1,5.45970237]
[1727411113943,0.73326198,2652.6,2652.1,5.45970237]
[1727411114143,0.73326198,2652.6,2652.1,3.77053]
[1727411114344,0.6782,2652.6,2652.1,3.77053]
[1727411114553,0.05490161,2652.5,2652.2,3.77043]
[1727411115243,0.05490161,2652.5,2652.1,3.66646484]
[1727411115436,0.05490161,2652.5,2652.0,3.77064]
[1727411115644,0.6782,2652.6,2652.0,3.77064]
[1727411115813,1.13061685,2652.6,2652.0,3.77064]
[1727411116214,1.13061685,2652.6,2652.1,3.77056]
[1727411117215,1.13061685,2652.6,2651.9,7.43728484]
[1727411117416,1.13061685,2652.6,2652.0,3.7707]
[1727411117628,4.90061685,2652.6,2651.9,7.43728484]
[1727411117829,3.77043,2652.3,2651.7,3.77115]
[1727411118119,3.9011267,2652.2,2651.5,7.43778484]
[1727411118352,3.7708,2652.0,2651.4,7.43800484]
[1727411118518,4.57753,2652.1,2651.5,3.77142]
[1727411118712,0.457753,2652.0,2651.5,3.77142]
[1727411118916,0.0536707,2651.9,2651.6,3.77129]
[1727411119116,0.0536707,2651.9,2651.8,7.43748484]
[1727411119355,0.8068,2652.6,2652.0,3.77065]
[1727411119666,0.8068,2652.6,2652.0,7.43711484]
[1727411119834,0.8068,2652.6,2652.2,7.43678484]
[1727411120028,0.8068,2652.6,2652.2,3.77032]
[1727411121064,0.8068,2652.6,2652.3,3.7703]
[1727411122317,0.05367485,2652.5,2652.3,3.7703]
[1727411122676,0.05367485,2652.5,2652.2,3.66646484]
[1727411123142,0.05367485,2652.5,2652.0,3.66646484]
[1727411123315,0.8068,2652.4,2652.0,3.77064]
[1727411123515,0.05396236,2652.3,2652.0,3.77064]
[1727411124535,0.05396236,2652.3,2651.9,3.77086]
[1727411124737,0.05396236,2652.3,2652.0,3.7707]
[1727411126464,0.8068,2652.4,2652.0,3.7707]
[1727411126959,0.05399583,2652.3,2652.0,3.7707]
[1727411128436,0.8162,2652.2,2651.9,7.54166]
[1727411128959,0.05387251,2652.1,2651.9,3.77083]
[1727411129261,0.8162,2652.2,2651.9,3.77083]
[1727411129560,0.05378606,2652.1,2652.0,3.77073]
[1727411129856,0.8162,2652.2,2652.0,3.77073]
[1727411130161,0.05378606,2652.1,2651.8,7.43741484]
[1727411130319,0.05378606,2652.1,2651.7,3.77103]
[1727411130515,0.8162,2652.0,2651.5,3.77141]
[1727411130721,0.8162,2652.0,2651.6,3.77125]
[1727411130922,0.05370358,2651.9,2651.6,3.77125]
[1727411132041,0.05370358,2651.9,2651.7,3.77112]
[1727411133765,0.05370358,2651.9,2651.7,3.77106]
[1727411134267,0.8162,2652.0,2651.7,3.77106]
[1727411134618,0.0535047,2651.9,2651.8,3.77102]
[1727411135044,0.8162,2652.2,2651.8,3.77102]
[1727411135433,0.0535322,2652.1,2651.8,3.77102]
[1727411136156,0.0535322,2652.1,2651.8,3.77099]
[1727411136732,0.0535322,2652.1,2651.9,3.77085]
[1727411137330,0.0535322,2652.1,2652.0,3.77073]
[1727411137734,0.8162,2652.2,2652.0,3.77073]
[1727411138271,0.05356369,2652.1,2652.0,3.77073]
[1727411138567,0.8162,2652.4,2652.0,3.77073]
[1727411139075,0.05359118,2652.3,2652.0,3.77073]
[1727411140277,0.05359118,2652.3,2652.1,3.77057]
[1727411140574,0.05359118,2652.3,2652.0,3.66646484]
[1727411140739,0.05359118,2652.3,2651.9,3.7708]
[1727411140939,0.8162,2652.4,2652.1,3.77055]
[1727411141141,0.05362127,2652.2,2652.1,3.77055]
[1727411141345,0.8162,2652.4,2652.1,3.77055]
[1727411141581,0.0536398,2652.2,2652.1,3.77055]
[1727411141768,0.8162,2652.4,2652.1,3.77055]
[1727411141977,0.05361749,2652.2,2652.1,3.77055]
[1727411142184,0.8162,2652.4,2652.1,3.77055]
[1727411142343,0.05364538,2652.2,2652.1,3.77055]
[1727411142547,0.8162,2652.4,2652.1,3.77055]
[1727411143285,0.05365913,2652.3,2652.1,3.77055]
[1727411148358,0.05365913,2652.3,2652.0,1.69227927]
[1727411149057,0.05365913,2652.3,2652.0,5.46291927]
[1727411151371,0.05365913,2652.3,2652.1,3.77048]
[1727411151586,0.05365913,2652.3,2652.1,8.35898]
[1727411151896,0.8162,2652.6,2652.1,4.58848]
[1727411152198,0.8162,2652.6,2652.2,1.69227927]
[1727411152416,0.05384105,2652.5,2652.2,1.69227927]
[1727411153685,0.05384105,2652.5,2652.1,0.818]
[1727411155514,0.05384105,2652.5,2652.1,5.36949564]
[1727411155899,0.05384105,2652.5,2652.1,1.59890564]
[1727411156319,0.05384105,2652.5,2652.1,0.818]
[1727411156493,0.05384105,2652.5,2652.1,1.59890564]
[1727411157391,0.05384105,2652.5,2652.2,0.78090564]
[1727411159026,0.05384105,2652.5,2652.2,2.47318491]
[1727411161517,0.05384105,2652.5,2652.2,1.69227927]
[1727411166796,0.05384105,2652.5,2652.2,1.691375]
[1727411167196,0.51784216,2652.5,2652.2,1.691375]
[1727411169421,0.05384105,2652.5,2652.2,1.691375]
[1727411169910,0.05384105,2652.5,2652.2,5.461815]
[1727411171279,0.05384105,2652.5,2652.4,6.24335491]
[1727411171406,0.05384105,2652.5,2652.4,7.92815094]
[1727411171604,4.52812,2653.3,2652.6,3.76976]
[1727411171849,0.7592,2653.1,2652.6,5.46203927]
[1727411172051,0.7592,2653.1,2652.6,1.69227927]
[1727411172204,0.80977385,2653.0,2652.4,0.78189505]
[1727411172406,0.452812,2653.2,2652.3,1.17284258]
[1727411172407,0.7592,2652.7,2652.3,0.78189505]
[1727411172605,0.7592,2652.7,2652.2,6.24455432]
[1727411172840,0.05051565,2652.6,2652.2,6.24455432]
[1727411173206,3.76991,2652.6,2652.2,2.47417432]
[1727411173453,0.7953,2652.4,2652.0,0.78189505]
[1727411173749,0.7953,2652.4,2652.0,1.69227927]
[1727411174057,0.05050102,2652.3,2652.0,5.46300927]
[1727411174639,0.7953,2652.4,2652.0,5.46300927]
[1727411174811,0.05052456,2652.2,2652.0,5.46300927]
[1727411175027,0.7953,2652.4,2652.0,5.46300927]
[1727411175350,0.0505383,2652.3,2652.0,5.46300927]
[1727411176322,0.05052456,2652.2,2652.0,5.46300927]
[1727411176752,0.7953,2652.4,2652.0,5.46300927]
[1727411177044,0.0505383,2652.3,2652.0,1.69227927]
[1727411177245,0.0505383,2652.3,2651.9,8.12189505]
[1727411177483,0.0505383,2652.3,2651.8,6.24509432]
[1727411177625,0.0505383,2652.3,2651.7,1.17284258]
[1727411177626,4.56575,2652.2,2651.7,0.78189505]
[1727411178016,0.05028205,2652.1,2651.7,0.78189505]
[1727411178417,4.56575,2652.2,2651.7,0.78189505]
[1727411178623,0.05028049,2652.0,2651.6,6.24546432]
[1727411178917,4.56575,2652.2,2651.6,6.24546432]
[1727411179229,0.93462721,2652.1,2651.6,6.24546432]
[1727411179550,0.7953,2652.0,2651.6,0.78189505]
[1727411180051,0.05026675,2651.9,2651.6,0.78189505]
[1727411180820,0.05026675,2651.9,2651.5,2.47417432]